fUST/lending_fUST_20240920
["ID","MTS","AMOUNT","RATE_DAILY","PERIOD"]
[338645700,1726841457409,-586.27,0.00016986,2]
[338645701,1726841457419,-655.68,0.00016986,2]
[338645702,1726841457429,-500.0,0.00016986,2]
[338645703,1726841457439,-500.0,0.00016986,2]
[338645704,1726841457448,-500.0,0.00016986,2]
[338645705,1726841457458,-500.0,0.00016986,2]
[338645706,1726841457468,-378.344378,0.00016986,2]
[338645707,1726841457478,-500.0,0.00016986,2]
[338645708,1726841457488,-378.344368,0.00016986,2]
[338645709,1726841457498,-500.0,0.00016986,2]
[338645710,1726841457508,-645.84,0.00016986,2]
[338645711,1726841457518,-500.0,0.00016986,2]
[338645712,1726841457528,-500.0,0.00016986,2]
[338645713,1726841457537,-500.0,0.00016986,2]
[338645714,1726841457546,-500.0,0.00016986,2]
[338645715,1726841457566,-500.0,0.00016986,2]
[338645716,1726841457576,-500.0,0.00016986,2]
[338645717,1726841457586,-500.0,0.00016986,2]
[338645718,1726841457598,-500.0,0.00016986,2]
[338645719,1726841457607,-777.55,0.00016986,2]
[338645720,1726841457617,-500.0,0.00016986,2]
[338645721,1726841457626,-500.0,0.00016986,2]
[338645722,1726841457636,-500.0,0.00016986,2]
[338645723,1726841457646,-500.0,0.00016986,2]
[338645724,1726841457656,-1540.84,0.00016986,2]
[338645725,1726841457665,-364.86,0.00016986,2]
[338645726,1726841457676,-637.75,0.00016986,2]
[338645727,1726841457686,-500.0,0.00016986,2]
[338645728,1726841457695,-877.67,0.00016986,2]
[338645729,1726841457704,-348.53,0.00016986,2]
[338645730,1726841457714,-500.0,0.00016986,2]
[338645731,1726841457724,-500.0,0.00016986,2]
[338645732,1726841457733,-500.0,0.00016986,2]
[338645733,1726841457743,-500.0,0.00016986,2]
[338645734,1726841457752,-500.0,0.00016986,2]
[338645735,1726841457761,-500.0,0.00016986,2]
[338645736,1726841457770,-500.0,0.00016986,2]
[338645737,1726841457780,-500.0,0.00016986,2]
[338645738,1726841457790,-500.0,0.00016986,2]
[338645739,1726841457803,-500.0,0.00016986,2]
[338645740,1726841457812,-500.0,0.00016986,2]
[338645741,1726841457822,-219.85098782,0.00016986,2]
[338645742,1726841457831,-531.53,0.00016986,2]
[338645743,1726841457840,-500.0,0.00016986,2]
[338645744,1726841457848,-722.61,0.00016986,2]
[338645745,1726841457857,-736.12,0.00016986,2]
[338645746,1726841457866,-500.0,0.00016986,2]
[338645747,1726841457875,-741.38,0.00016986,2]
[338645748,1726841457884,-506.46,0.00016986,2]
[338645749,1726841457893,-500.0,0.00016986,2]
[338645750,1726841457903,-337.17846631,0.00016986,2]
[338645751,1726841457912,-40723.53387547,0.00016986,2]
[338645752,1726841458273,-1043.5467963,0.00016234,2]
[338645753,1726841458479,-1373.87461953,0.00016234,2]
[338645803,1726842516869,15049.37962044,0.00014,4]
[338645843,1726842632158,-300.0,0.00014679,2]
[338645844,1726842632169,-300.0,0.00014679,2]
[338645845,1726842632181,-2531.15,0.0001468,2]
[338645872,1726842638321,-22368.85,0.0001468,2]
[338645874,1726842638331,-164.633503,0.00014942,2]
[338645875,1726842638341,-445.3050758,0.00015051,2]
[338645878,1726842638351,-2349.9078533,0.00015069,2]
[338645879,1726842638361,-20088.85072,0.0001566,2]
[338645882,1726842638370,-153.0,0.00016,2]
[338645884,1726842638381,-153.0,0.00016,2]
[338645886,1726842638391,-1000.0,0.00016,8]
[338645888,1726842638400,-420.0,0.00016071,2]
[338645890,1726842638410,-420.0,0.00016147,2]
[338645892,1726842638419,-153.0,0.00016178,2]
[338645893,1726842638428,-153.0,0.000162,2]
[338645894,1726842638438,-1492.9416432,0.00016326,2]
[338645896,1726842638447,-8841.94595757,0.00016336,2]
[338645899,1726842638458,-3000.0,0.000164,2]
[338645900,1726842638468,-200.06757982,0.00016408,2]
[338645902,1726842638477,-151.0,0.00016408,2]
[338645904,1726842638487,-3000.0,0.0001641,2]
[338645906,1726842638496,-524.0,0.00016412,2]
[338645908,1726842638506,-150.0,0.00016412,2]
[338645910,1726842638516,-1216.0,0.00016412,2]
[338645912,1726842638525,-275.89403805,0.00016413,2]
[338645914,1726842638535,-500.0,0.00016413,2]
[338645916,1726842638544,-1927.74068325,0.00016413,2]
[338645918,1726842638554,-500.0,0.00016413,2]
[338645920,1726842638564,-500.0,0.00016413,2]
[338645922,1726842638574,-1927.74068325,0.00016413,2]
[338645924,1726842638583,-373.51104886,0.00016413,2]
[338645927,1726842638593,-1927.74068325,0.00016413,2]
[338645929,1726842638602,-500.0,0.00016413,2]
[338645931,1726842638612,-500.0,0.00016413,2]
[338645933,1726842638621,-1927.74068325,0.00016413,2]
[338645935,1726842638632,-1927.74068325,0.00016413,2]
[338645937,1726842638641,-500.0,0.00016413,2]
[338645939,1726842638650,-500.0,0.00016413,2]
[338645941,1726842638660,-1927.74068325,0.00016413,2]
[338645942,1726842638669,-500.0,0.00016413,2]
[338645944,1726842638679,-1927.74068325,0.00016413,2]
[338645946,1726842638688,-500.0,0.00016413,2]
[338645948,1726842638697,-1927.74068325,0.00016413,2]
[338645950,1726842638708,-1927.74068325,0.00016413,2]
[338645951,1726842638718,-1927.74068325,0.00016413,2]
[338645952,1726842638727,-1927.74068325,0.00016413,2]
[338645953,1726842638736,-1927.74068325,0.00016413,2]
[338645954,1726842638745,-1927.74068325,0.00016413,2]
[338645955,1726842638755,-1927.74068325,0.00016413,2]
[338645956,1726842638764,-1927.74068325,0.00016413,2]
[338645957,1726842638773,-1927.74068325,0.00016413,2]
[338645958,1726842638782,-1927.74068325,0.00016413,2]
[338645959,1726842638795,-1927.74068325,0.00016413,2]
[338645960,1726842638805,-1927.74068325,0.00016413,2]
[338645961,1726842638815,-1927.74068325,0.00016413,2]
[338645962,1726842638824,-1927.74068325,0.00016413,2]
[338645963,1726842638834,-1927.74068325,0.00016413,2]
[338645964,1726842638843,-1927.74068325,0.00016413,2]
[338645965,1726842638853,-1927.74068325,0.00016413,2]
[338645966,1726842638862,-1927.74068325,0.00016413,2]
[338645967,1726842638872,-1927.74068325,0.00016413,2]
[338645968,1726842638881,-1927.74068325,0.00016413,2]
[338645969,1726842638891,-1927.74068325,0.00016413,2]
[338645970,1726842638900,-1927.74068325,0.00016413,2]
[338645971,1726842638910,-1927.74068325,0.00016413,2]
[338645972,1726842638919,-1927.74068325,0.00016413,2]
[338645973,1726842638929,-1927.74068325,0.00016413,2]
[338645974,1726842638938,-1927.74068325,0.00016413,2]
[338645975,1726842638948,-1927.74068325,0.00016413,2]
[338645976,1726842638958,-1927.74068325,0.00016413,2]
[338645977,1726842638968,-1927.74068325,0.00016413,2]
[338645978,1726842638977,-1927.74068325,0.00016413,2]
[338645979,1726842638986,-1927.74068325,0.00016413,2]
[338645980,1726842638996,-1927.74068325,0.00016413,2]
[338645981,1726842639005,-1927.74068325,0.00016413,2]
[338645982,1726842639014,-1927.74068325,0.00016413,2]
[338645983,1726842639024,-1927.74068325,0.00016413,2]
[338645984,1726842639033,-1927.74068325,0.00016413,2]
[338645985,1726842639043,-1927.74068325,0.00016413,2]
[338645986,1726842639052,-1889.18586959,0.00016413,2]
[338645987,1726842639062,-1889.18586959,0.00016413,2]
[338645988,1726842639071,-1889.18586959,0.00016413,2]
[338645989,1726842639081,-1889.18586959,0.00016413,2]
[338645990,1726842639090,-1889.18586959,0.00016413,2]
[338645991,1726842639099,-1889.18586959,0.00016413,2]
[338645992,1726842639109,-1889.18586959,0.00016413,2]
[338645993,1726842639118,-1889.18586959,0.00016413,2]
[338645994,1726842639127,-1889.18586959,0.00016413,2]
[338645995,1726842639137,-1889.18586959,0.00016413,2]
[338645996,1726842639146,-1889.18586959,0.00016413,2]
[338645997,1726842639156,-1889.18586959,0.00016413,2]
[338645998,1726842639165,-1889.18586959,0.00016413,2]
[338645999,1726842639180,-1889.18586959,0.00016413,2]
[338646000,1726842639189,-1889.18586959,0.00016413,2]
[338646001,1726842639198,-1889.18586959,0.00016413,2]
[338646002,1726842639209,-1889.18586959,0.00016413,2]
[338646003,1726842639218,-1889.18586959,0.00016413,2]
[338646004,1726842639228,-1889.18586959,0.00016413,2]
[338646005,1726842639236,-1889.18586959,0.00016413,2]
[338646006,1726842639251,-1889.18586959,0.00016413,2]
[338646007,1726842639262,-1889.18586959,0.00016413,2]
[338646008,1726842639271,-1889.18586959,0.00016413,2]
[338646009,1726842639281,-1889.18586959,0.00016413,2]
[338646010,1726842639291,-1891.54735193,0.00016413,2]
[338646011,1726842639300,-1891.54735193,0.00016413,2]
[338646012,1726842639310,-1891.54735193,0.00016413,2]
[338646013,1726842639319,-1891.54735193,0.00016413,2]
[338646014,1726842639328,-1891.54735193,0.00016413,2]
[338646015,1726842639337,-1891.54735193,0.00016413,2]
[338646016,1726842639347,-1891.54735193,0.00016413,2]
[338646017,1726842639356,-1891.54735193,0.00016413,2]
[338646018,1726842639365,-1891.54735193,0.00016413,2]
[338646019,1726842639374,-1891.54735193,0.00016413,2]
[338646020,1726842639383,-1891.54735193,0.00016413,2]
[338646021,1726842639393,-1891.54735193,0.00016413,2]
[338646022,1726842639402,-1891.54735193,0.00016413,2]
[338646023,1726842639412,-1891.54735193,0.00016413,2]
[338646024,1726842639421,-1891.54735193,0.00016413,2]
[338646025,1726842639431,-1891.54735193,0.00016413,2]
[338646026,1726842639441,-1891.54735193,0.00016413,2]
[338646027,1726842639450,-1891.54735193,0.00016413,2]
[338646028,1726842639461,-1891.54735195,0.00016413,2]
[338646029,1726842639470,-1891.54735194,0.00016413,2]
[338646030,1726842639480,-161.34877038,0.00016413,2]
[338646031,1726842639490,-367.84289335,0.00016413,2]
[338646032,1726842639500,-500.0,0.00016413,2]
[338646033,1726842639509,-500.0,0.00016413,2]
[338646034,1726842639519,-500.0,0.00016413,2]
[338646035,1726842639529,-500.0,0.00016413,2]
[338646036,1726842639538,-617.93616369,0.00016413,2]
[338646037,1726842639548,-500.0,0.00016413,2]
[338646038,1726842639557,-164.34623247,0.00016413,2]
[338646039,1726842639567,-500.0,0.00016413,2]
[338646040,1726842639576,-500.0,0.00016413,2]
[338646041,1726842639585,-500.0,0.00016413,2]
[338646042,1726842639595,-500.0,0.00016413,2]
[338646043,1726842639604,-500.0,0.00016413,2]
[338646044,1726842639614,-500.0,0.00016413,2]
[338646045,1726842639624,-500.0,0.00016413,2]
[338646046,1726842639634,-36335.22217342,0.00016414,5]
[338646047,1726842639644,-157.59542889,0.00016414,2]
[338646048,1726842639654,-83897.91800074,0.00016414,2]
[338646050,1726842639673,-23076.66774109,0.00016414,2]
[338646051,1726842639685,-4209.51336097,0.00016414,2]
[338646054,1726842639697,-5342.45949081,0.00016414,2]
[338646062,1726842640206,-181793.85145139,0.00016414,2]
[338646063,1726842640220,-74580.1025113,0.00016415,2]
[338646064,1726842640232,-3000.0,0.0001642,2]
[338646065,1726842640242,-1426.369,0.00016422,2]
[338646066,1726842640252,-191.12889684,0.00016422,2]
[338646067,1726842640262,-160.0,0.00016425,2]
[338646068,1726842640272,-151.0,0.00016428,2]
[338646069,1726842640282,-254.966097,0.00016428,2]
[338646070,1726842640292,-151.0,0.00016428,2]
[338646071,1726842640301,-217.949582,0.00016428,2]
[338646072,1726842640311,-217.949582,0.00016428,2]
[338646073,1726842640320,-151.0,0.00016428,2]
[338646074,1726842640330,-151.0,0.00016428,2]
[338646075,1726842640340,-151.0,0.00016428,2]
[338646076,1726842640349,-151.0,0.00016428,2]
[338646077,1726842640359,-151.0,0.00016428,2]
[338646078,1726842640368,-151.0,0.00016428,2]
[338646079,1726842640377,-237.484143,0.00016428,2]
[338646080,1726842640387,-237.484143,0.00016428,2]
[338646081,1726842640397,-151.0,0.00016428,2]
[338646082,1726842640407,-151.0,0.00016428,2]
[338646083,1726842640416,-151.0,0.00016428,2]
[338646084,1726842640426,-151.0,0.00016428,2]
[338646085,1726842640437,-151.0,0.00016428,2]
[338646086,1726842640447,-196.754336,0.00016428,2]
[338646087,1726842640459,-196.754336,0.00016428,2]
[338646088,1726842640469,-151.0,0.00016428,2]
[338646089,1726842640479,-151.0,0.00016428,2]
[338646090,1726842640488,-3000.0,0.0001643,2]
[338646091,1726842640498,-151.0,0.00016436,2]
[338646092,1726842640508,-621.87,0.00016438,2]
[338646093,1726842640518,-190.24451271,0.00016438,2]
[338646094,1726842640528,-232.75,0.00016438,2]
[338646095,1726842640537,-505.47665703,0.00016438,2]
[338646096,1726842640547,-858.72,0.00016438,2]
[338646097,1726842640557,-500.0,0.00016438,2]
[338646098,1726842640567,-507.54,0.00016438,2]
[338646099,1726842640579,-500.0,0.00016438,2]
[338646100,1726842640589,-504.8,0.00016438,2]
[338646101,1726842640599,-500.0,0.00016438,2]
[338646102,1726842640608,-500.0,0.00016438,2]
[338646103,1726842640619,-500.0,0.00016438,2]
[338646104,1726842640629,-758.54,0.00016438,2]
[338646105,1726842640638,-500.0,0.00016438,2]
[338646106,1726842640648,-548.77,0.00016438,2]
[338646107,1726842640658,-500.0,0.00016438,2]
[338646108,1726842640668,-446.66185204,0.00016438,2]
[338646109,1726842640677,-622.25,0.00016438,2]
[338646110,1726842640688,-200.0,0.00016438,2]
[338646111,1726842640698,-500.0,0.00016438,2]
[338646112,1726842640708,-500.0,0.00016438,2]
[338646113,1726842640718,-500.0,0.00016438,2]
[338646114,1726842640728,-540.67,0.00016438,2]
[338646115,1726842640737,-500.0,0.00016438,2]
[338646116,1726842640747,-500.0,0.00016438,2]
[338646117,1726842640758,-500.0,0.00016438,2]
[338646118,1726842640770,-806.52,0.00016438,2]
[338646119,1726842640780,-500.0,0.00016438,2]
[338646120,1726842640791,-176.12,0.00016438,2]
[338646121,1726842640802,-601.04,0.00016438,2]
[338646122,1726842640813,-500.0,0.00016438,2]
[338646123,1726842640823,-500.0,0.00016438,2]
[338646124,1726842640834,-500.0,0.00016438,2]
[338646125,1726842640845,-500.0,0.00016438,2]
[338646126,1726842640855,-500.0,0.00016438,2]
[338646127,1726842640865,-500.0,0.00016438,2]
[338646128,1726842640876,-500.0,0.00016438,2]
[338646129,1726842640887,-712.76,0.00016438,2]
[338646130,1726842640896,-500.0,0.00016438,2]
[338646131,1726842640906,-500.0,0.00016438,2]
[338646132,1726842640915,-500.0,0.00016438,2]
[338646133,1726842640926,-500.0,0.00016438,2]
[338646134,1726842640935,-509.39,0.00016438,2]
[338646135,1726842640945,-500.0,0.00016438,2]
[338646136,1726842640955,-500.0,0.00016438,2]
[338646137,1726842640965,-219.85098782,0.00016438,2]
[338646138,1726842640975,-500.0,0.00016438,2]
[338646139,1726842640984,-500.0,0.00016438,2]
[338646140,1726842640994,-500.0,0.00016438,2]
[338646141,1726842641005,-500.0,0.00016438,2]
[338646142,1726842641015,-500.0,0.00016438,2]
[338646143,1726842641025,-500.0,0.00016438,2]
[338646144,1726842641035,-500.0,0.00016438,2]
[338646145,1726842641045,-438.00006726,0.00016438,2]
[338646146,1726842641054,-303.04,0.00016438,2]
[338646147,1726842641064,-500.0,0.00016438,2]
[338646148,1726842641073,-500.0,0.00016438,2]
[338646149,1726842641083,-501.64769811,0.00016438,2]
[338646150,1726842641092,-500.0,0.00016438,2]
[338646151,1726842641102,-500.0,0.00016438,2]
[338646152,1726842641111,-500.0,0.00016438,2]
[338646153,1726842641120,-500.0,0.00016438,2]
[338646154,1726842641130,-769.45,0.00016438,2]
[338646155,1726842641139,-500.0,0.00016438,2]
[338646156,1726842641150,-1221.95,0.00016438,2]
[338646157,1726842641160,-230.17,0.00016438,2]
[338646158,1726842641170,-506.10607374,0.00016438,2]
[338646159,1726842641183,-500.0,0.00016438,2]
[338646160,1726842641193,-820.79,0.00016438,2]
[338646161,1726842641204,-500.0,0.00016438,2]
[338646162,1726842641218,-500.0,0.00016438,2]
[338646163,1726842641230,-500.0,0.00016438,2]
[338646164,1726842641240,-247.22233698,0.00016438,2]
[338646165,1726842641252,-607.97112031,0.00016438,2]
[338646166,1726842641261,-500.0,0.00016438,2]
[338646167,1726842641271,-597.12558644,0.00016438,2]
[338646168,1726842641281,-500.0,0.00016438,2]
[338646169,1726842641290,-500.0,0.00016438,2]
[338646170,1726842641300,-605.47,0.00016438,2]
[338646171,1726842641310,-500.0,0.00016438,2]
[338646172,1726842641320,-624.65,0.00016438,2]
[338646173,1726842641329,-500.0,0.00016438,2]
[338646174,1726842641338,-500.0,0.00016438,2]
[338646175,1726842641348,-279.76,0.00016438,2]
[338646176,1726842641358,-500.0,0.00016438,2]
[338646177,1726842641367,-500.0,0.00016438,2]
[338646178,1726842641377,-588.35770433,0.00016438,2]
[338646179,1726842641386,-500.0,0.00016438,2]
[338646180,1726842641396,-500.0,0.00016438,2]
[338646181,1726842641405,-500.0,0.00016438,2]
[338646182,1726842641415,-500.0,0.00016438,2]
[338646183,1726842641424,-500.0,0.00016438,2]
[338646184,1726842641434,-500.0,0.00016438,2]
[338646185,1726842641444,-500.0,0.00016438,2]
[338646186,1726842641457,-1476.64,0.00016438,2]
[338646187,1726842641466,-500.0,0.00016438,2]
[338646188,1726842641476,-500.0,0.00016438,2]
[338646189,1726842641485,-2097.81,0.00016438,2]
[338646190,1726842641495,-500.0,0.00016438,2]
[338646191,1726842641504,-500.0,0.00016438,2]
[338646192,1726842641514,-500.0,0.00016438,2]
[338646193,1726842641523,-500.0,0.00016438,2]
[338646194,1726842641532,-732.44,0.00016438,2]
[338646195,1726842641542,-500.0,0.00016438,2]
[338646196,1726842641552,-500.0,0.00016438,2]
[338646197,1726842641561,-276.72001185,0.00016438,2]
[338646198,1726842641571,-500.0,0.00016438,2]
[338646199,1726842641580,-500.0,0.00016438,2]
[338646200,1726842641589,-500.0,0.00016438,2]
[338646201,1726842641598,-500.0,0.00016438,2]
[338646202,1726842641608,-1123.07,0.00016438,2]
[338646203,1726842641619,-254.00408084,0.00016438,2]
[338646204,1726842641628,-500.0,0.00016438,2]
[338646205,1726842641638,-500.0,0.00016438,2]
[338646206,1726842641647,-500.0,0.00016438,2]
[338646207,1726842641657,-422.05,0.00016438,2]
[338646208,1726842641666,-500.0,0.00016438,2]
[338646209,1726842641675,-306.24798982,0.00016438,2]
[338646210,1726842641685,-500.0,0.00016438,2]
[338646211,1726842641865,-500.0,0.00016438,2]
[338646212,1726842641875,-500.0,0.00016438,2]
[338646213,1726842641885,-500.0,0.00016438,2]
[338646214,1726842641894,-611.17,0.00016438,2]
[338646215,1726842641904,-500.0,0.00016438,2]
[338646216,1726842641917,-500.0,0.00016438,2]
[338646217,1726842641926,-500.0,0.00016438,2]
[338646218,1726842641936,-500.0,0.00016438,2]
[338646219,1726842641946,-644.17,0.00016438,2]
[338646220,1726842641955,-500.0,0.00016438,2]
[338646221,1726842641966,-500.0,0.00016438,2]
[338646222,1726842641975,-500.0,0.00016438,2]
[338646223,1726842641985,-500.0,0.00016438,2]
[338646224,1726842641995,-500.0,0.00016438,2]
[338646225,1726842642005,-503.22976145,0.00016438,2]
[338646226,1726842642015,-500.0,0.00016438,2]
[338646227,1726842642024,-500.0,0.00016438,2]
[338646228,1726842642033,-297.09,0.00016438,2]
[338646229,1726842642043,-500.0,0.00016438,2]
[338646230,1726842642053,-500.0,0.00016438,2]
[338646231,1726842642062,-567.31,0.00016438,2]
[338646232,1726842642071,-499.52504147,0.00016438,2]
[338646233,1726842642081,-500.0,0.00016438,2]
[338646234,1726842642091,-500.0,0.00016438,2]
[338646235,1726842642100,-500.0,0.00016438,2]
[338646236,1726842642109,-500.0,0.00016438,2]
[338646237,1726842642119,-500.0,0.00016438,2]
[338646238,1726842642128,-433.8,0.00016438,2]
[338646239,1726842642138,-500.0,0.00016438,2]
[338646240,1726842642148,-501.04923681,0.00016438,2]
[338646241,1726842642157,-500.0,0.00016438,2]
[338646242,1726842642169,-503.59,0.00016438,2]
[338646243,1726842642180,-178.36590775,0.00016438,2]
[338646244,1726842642189,-500.0,0.00016438,2]
[338646245,1726842642199,-500.0,0.00016438,2]
[338646246,1726842642209,-500.0,0.00016438,2]
[338646247,1726842642219,-500.0,0.00016438,2]
[338646248,1726842642228,-500.0,0.00016438,2]
[338646249,1726842642238,-501.68743612,0.00016438,2]
[338646250,1726842642247,-729.33,0.00016438,2]
[338646251,1726842642256,-556.8435536,0.00016438,2]
[338646252,1726842642266,-213.34,0.00016438,2]
[338646253,1726842642276,-500.0,0.00016438,2]
[338646254,1726842642286,-692.5,0.00016438,2]
[338646255,1726842642295,-838.5,0.00016438,2]
[338646256,1726842642305,-710.49,0.00016438,2]
[338646257,1726842642315,-638.6,0.00016438,2]
[338646258,1726842642325,-500.0,0.00016438,2]
[338646259,1726842642334,-500.0,0.00016438,2]
[338646260,1726842642343,-500.0,0.00016438,2]
[338646261,1726842642352,-500.0,0.00016438,2]
[338646262,1726842642362,-515.95,0.00016438,2]
[338646263,1726842642371,-500.0,0.00016438,2]
[338646264,1726842642381,-500.0,0.00016438,2]
[338646265,1726842642390,-500.0,0.00016438,2]
[338646266,1726842642401,-500.0,0.00016438,2]
[338646267,1726842642410,-500.0,0.00016438,2]
[338646268,1726842642420,-500.0,0.00016438,2]
[338646269,1726842642429,-500.0,0.00016438,2]
[338646270,1726842642438,-500.0,0.00016438,2]
[338646271,1726842642448,-500.0,0.00016438,2]
[338646272,1726842642457,-500.0,0.00016438,2]
[338646273,1726842642467,-500.0,0.00016438,2]
[338646274,1726842642477,-433.05,0.00016438,2]
[338646275,1726842642486,-151.0,0.00016438,2]
[338646276,1726842642497,-500.0,0.00016438,2]
[338646277,1726842642507,-500.0,0.00016438,2]
[338646278,1726842642516,-500.0,0.00016438,2]
[338646279,1726842642526,-500.0,0.00016438,2]
[338646280,1726842642537,-500.0,0.00016438,2]
[338646281,1726842642546,-500.0,0.00016438,2]
[338646282,1726842642556,-151.0,0.00016438,2]
[338646283,1726842642567,-1000.0,0.00016438,2]
[338646284,1726842642576,-646.66,0.00016438,2]
[338646285,1726842642586,-500.0,0.00016438,2]
[338646286,1726842642595,-500.0,0.00016438,2]
[338646287,1726842642604,-500.0,0.00016438,2]
[338646288,1726842642614,-236.80021,0.00016438,2]
[338646289,1726842642624,-608.01,0.00016438,2]
[338646290,1726842642633,-321.42921908,0.00016438,2]
[338646292,1726842642643,-666.15,0.00016438,2]
[338646293,1726842642652,-176.08519079,0.00016438,2]
[338646294,1726842642661,-500.0,0.00016438,2]
[338646295,1726842642671,-501.77,0.00016438,2]
[338646296,1726842642680,-500.0,0.00016438,2]
[338646297,1726842642690,-500.0,0.00016438,2]
[338646299,1726842642699,-500.0,0.00016438,2]
[338646301,1726842642709,-217.949582,0.00016438,2]
[338646302,1726842642719,-500.0,0.00016438,2]
[338646304,1726842642728,-500.0,0.00016438,2]
[338646306,1726842642738,-500.0,0.00016438,2]
[338646307,1726842642747,-217.949582,0.00016438,2]
[338646308,1726842642757,-500.0,0.00016438,2]
[338646309,1726842642766,-653.88,0.00016438,2]
[338646310,1726842642777,-501.2014432,0.00016438,2]
[338646311,1726842642787,-56476.76,0.00016438,2]
[338646312,1726842642798,-391.25814725,0.00016438,2]
[338646313,1726842642809,-259.52216569,0.00016438,2]
[338646314,1726842642820,-638.58,0.00016438,2]
[338646315,1726842642829,-510.88,0.00016438,2]
[338646316,1726842642840,-500.0,0.00016438,2]
[338646317,1726842642851,-479.90076632,0.00016438,2]
[338646318,1726842642861,-500.0,0.00016438,2]
[338646319,1726842642871,-500.0,0.00016438,2]
[338646320,1726842642881,-500.7574108,0.00016438,2]
[338646321,1726842642890,-7987.48,0.00016438,2]
[338646322,1726842642901,-500.0,0.00016438,2]
[338646323,1726842642911,-500.0,0.00016438,2]
[338646325,1726842642920,-689.43,0.00016438,2]
[338646328,1726842642929,-500.0,0.00016438,2]
[338646330,1726842642939,-500.0,0.00016438,2]
[338646331,1726842642949,-500.0,0.00016438,2]
[338646332,1726842642960,-727.93,0.00016438,2]
[338646333,1726842642969,-500.0,0.00016438,2]
[338646334,1726842642980,-500.0,0.00016438,2]
[338646335,1726842642990,-501.21607676,0.00016438,2]
[338646336,1726842642999,-151.0,0.00016438,2]
[338646337,1726842643010,-599.81651463,0.00016438,2]
[338646338,1726842643020,-500.0,0.00016438,2]
[338646339,1726842643029,-500.0,0.00016438,2]
[338646340,1726842643040,-152.466372,0.00016438,2]
[338646341,1726842643052,-500.0,0.00016438,2]
[338646342,1726842643062,-500.0,0.00016438,2]
[338646343,1726842643071,-413.65601812,0.00016438,2]
[338646344,1726842643081,-314.34766486,0.00016438,2]
[338646345,1726842643090,-500.0,0.00016438,2]
[338646346,1726842643100,-500.0,0.00016438,2]
[338646347,1726842643109,-500.0,0.00016438,2]
[338646348,1726842643119,-500.0,0.00016438,2]
[338646349,1726842643129,-552.42,0.00016438,2]
[338646350,1726842643139,-500.0,0.00016438,2]
[338646351,1726842643148,-543.43,0.00016438,2]
[338646352,1726842643158,-277.475254,0.00016438,2]
[338646353,1726842643167,-360.44496563,0.00016438,2]
[338646354,1726842643181,-805.68,0.00016438,2]
[338646355,1726842643190,-500.0,0.00016438,2]
[338646356,1726842643200,-500.0,0.00016438,2]
[338646357,1726842643210,-500.0,0.00016438,2]
[338646358,1726842643221,-500.0,0.00016438,2]
[338646359,1726842643230,-500.0,0.00016438,2]
[338646360,1726842643240,-500.0,0.00016438,2]
[338646361,1726842643251,-500.84564217,0.00016438,2]
[338646362,1726842643261,-151.0,0.00016438,2]
[338646363,1726842643271,-500.0,0.00016438,2]
[338646364,1726842643280,-500.0,0.00016438,2]
[338646365,1726842643290,-500.0,0.00016438,2]
[338646366,1726842643300,-151.0,0.00016438,2]
[338646367,1726842643309,-500.0,0.00016438,2]
[338646368,1726842643319,-501.87955308,0.00016438,2]
[338646369,1726842643328,-237.484143,0.00016438,2]
[338646370,1726842643339,-500.0,0.00016438,2]